bitfinex/quotes_BTCUSD_20250607
["timestamp","ask_amount","ask_price","bid_price","bid_amount"]
[1749322339037,1.56534618,105750.0,105740.0,0.28946283]
[1749322339234,1.54834631,105750.0,105740.0,0.28946283]
[1749322339471,1.52965913,105750.0,105740.0,0.28946283]
[1749322339635,1.53165959,105750.0,105740.0,0.28946283]
[1749322339851,1.52802599,105750.0,105740.0,0.28946283]
[1749322340073,1.53466004,105750.0,105740.0,0.28946283]
[1749322340278,1.53466059,105750.0,105740.0,0.28946283]
[1749322340484,1.534661,105750.0,105740.0,0.28946283]
[1749322340690,1.55235589,105750.0,105740.0,0.28946283]
[1749322340933,1.55235664,105750.0,105740.0,0.00174283]
[1749322341146,5.69285971,105750.0,105740.0,0.28946283]
[1749322341353,5.77156409,105750.0,105740.0,0.28946283]
[1749322341506,5.78925905,105750.0,105740.0,0.28946283]
[1749322341702,5.67516464,105750.0,105740.0,0.28946283]
[1749322341948,5.67516465,105750.0,105740.0,0.28946283]
[1749322342136,5.73062613,105750.0,105740.0,0.28946283]
[1749322342367,5.71293147,105750.0,105740.0,0.00174283]
[1749322342575,5.70629581,105750.0,105740.0,0.28946283]
[1749322342718,5.73062601,105750.0,105740.0,0.28946283]
[1749322342921,5.7239905,105750.0,105740.0,0.28946283]
[1749322343124,5.72399041,105750.0,105740.0,0.28946283]
[1749322343347,5.72399033,105750.0,105740.0,0.28946283]
[1749322343510,5.70629581,105750.0,105740.0,0.28946283]
[1749322343729,5.71293126,105750.0,105740.0,0.28946283]
[1749322343946,5.70629581,105750.0,105740.0,0.28946283]
[1749322344146,5.72399035,105750.0,105740.0,0.28946283]
[1749322344352,5.70232203,105750.0,105740.0,0.28946283]
[1749322344565,5.7063035,105750.0,105740.0,0.00174283]
[1749322344798,5.73063356,105750.0,105740.0,0.00174283]
[1749322345023,5.70232312,105750.0,105740.0,0.00174283]
[1749322345213,5.69568733,105750.0,105740.0,0.00174283]
[1749322345417,5.74833036,105750.0,105740.0,0.00174283]
[1749322345631,5.74533036,105750.0,105740.0,0.00174283]
[1749322345857,5.74933036,105750.0,105740.0,0.00174283]
[1749322346077,5.70132319,105750.0,105740.0,0.00174283]
[1749322346298,5.69468733,105750.0,105740.0,0.00174283]
[1749322346514,5.72300159,105750.0,105740.0,0.00174283]
[1749322346726,5.72963768,105750.0,105740.0,0.00174283]
[1749322346939,5.74069784,105750.0,105740.0,0.00174283]
[1749322347160,5.72300159,105750.0,105740.0,0.00174283]
[1749322347413,5.72600159,105750.0,105740.0,0.00174283]
[1749322347647,5.75034042,105750.0,105740.0,0.00174283]
[1749322347858,5.74370262,105750.0,105740.0,0.00174283]
[1749322348065,5.72600159,105750.0,105740.0,0.00174283]
[1749322348680,5.74370819,105750.0,105740.0,0.00174283]
[1749322348891,5.75034817,105750.0,105740.0,0.00174283]
[1749322349090,5.75034785,105750.0,105740.0,0.00174283]
[1749322349297,5.7437082,105750.0,105740.0,0.00174283]
[1749322349524,4.9061868,105750.0,105740.0,0.03244283]
[1749322349736,5.31572668,105750.0,105740.0,0.03244283]
[1749322349998,5.27795978,105750.0,105740.0,0.03244283]
[1749322350212,5.27132313,105750.0,105740.0,0.03244283]
[1749322350422,5.26026135,105750.0,105740.0,0.03244283]
[1749322350632,5.25362407,105750.0,105740.0,0.03244283]
[1749322350843,5.26026124,105750.0,105740.0,0.03244283]
[1749322351051,5.26026121,105750.0,105740.0,0.03244283]
[1749322351314,5.25362407,105750.0,105740.0,0.03244283]
[1749322351531,5.26026125,105750.0,105740.0,0.03244283]
[1749322351740,5.26026124,105750.0,105740.0,0.03244283]
[1749322352163,5.26026169,105750.0,105740.0,0.03244283]
[1749322352381,5.25362407,105750.0,105740.0,0.03244283]
[1749322353079,5.2602617,105750.0,105740.0,0.03244283]
[1749322353291,5.26026171,105750.0,105740.0,0.03244283]
[1749322353518,5.66317239,105750.0,105740.0,0.01684283]
[1749322353735,5.66317249,105750.0,105740.0,0.01684283]
[1749322353950,5.66317239,105750.0,105740.0,0.01684283]
[1749322354167,5.66317238,105750.0,105740.0,0.01684283]
[1749322354380,5.65653477,105750.0,105740.0,0.01684283]
[1749322354598,5.66317248,105750.0,105740.0,0.01684283]
[1749322354809,5.65653477,105750.0,105740.0,0.01684283]
[1749322355042,5.66317245,105750.0,105740.0,0.01684283]
[1749322355255,5.65653477,105750.0,105740.0,0.01684283]
[1749322355472,5.66317273,105750.0,105740.0,0.01684283]
[1749322355680,5.65653477,105750.0,105740.0,0.01684283]
[1749322355889,5.67423578,105750.0,105740.0,0.01684283]
[1749322356092,5.68087366,105750.0,105740.0,0.01684283]
[1749322356320,5.65653477,105750.0,105740.0,0.01684283]
[1749322356740,5.68087337,105750.0,105740.0,0.01684283]
[1749322356962,5.68087345,105750.0,105740.0,0.01684283]
[1749322357200,5.71864012,105750.0,105740.0,0.28946283]
[1749322357427,5.72840211,105750.0,105740.0,0.28946283]
[1749322357680,5.71733923,105750.0,105740.0,0.28946283]
[1749322357895,5.73503997,105750.0,105740.0,0.28946283]
[1749322358121,5.73504079,105750.0,105740.0,0.28946283]
[1749322358324,5.71733931,105750.0,105740.0,0.28946283]
[1749322358545,5.71733929,105750.0,105740.0,0.28946283]
[1749322358767,5.71070159,105750.0,105740.0,0.28946283]
[1749322359031,5.72840069,105750.0,105740.0,0.28946283]
[1749322359255,5.71733878,105750.0,105740.0,0.28946283]
[1749322359473,5.72840077,105750.0,105740.0,0.28946283]
[1749322359693,5.71733877,105750.0,105740.0,0.28946283]
[1749322359891,5.71070159,105750.0,105740.0,0.28946283]
[1749322360106,5.73503808,105750.0,105740.0,0.28946283]
[1749322360327,5.73503794,105750.0,105740.0,0.28946283]
[1749322360536,5.73503847,105750.0,105740.0,0.28946283]
[1749322360748,5.73503842,105750.0,105740.0,0.28946283]
[1749322360972,5.71733896,105750.0,105740.0,0.28946283]
[1749322361185,5.72840035,105750.0,105740.0,0.28946283]
[1749322361411,5.71070159,105750.0,105740.0,0.28946283]
[1749322361625,5.73503799,105750.0,105740.0,0.28946283]
[1749322362267,5.72720257,105750.0,105740.0,0.28946283]
[1749322362479,5.74280266,105750.0,105740.0,0.28946283]
[1749322362699,5.72720284,105750.0,105740.0,0.28946283]
[1749322362913,5.72720275,105750.0,105740.0,0.28946283]
[1749322363337,5.7338402,105750.0,105740.0,0.28946283]
[1749322363548,5.73384035,105750.0,105740.0,0.28946283]
[1749322364002,5.73384068,105750.0,105740.0,0.28946283]
[1749322364221,5.71864123,105750.0,105740.0,0.28946283]
[1749322364424,5.70093966,105750.0,105740.0,0.28946283]
[1749322364634,5.71864031,105750.0,105740.0,0.28946283]
[1749322365346,5.71863964,105750.0,105740.0,0.30586283]
[1749322365548,5.70093928,105750.0,105740.0,0.30586283]
[1749322365757,5.70093924,105750.0,105740.0,0.30586283]
[1749322365993,5.73634043,105750.0,105740.0,0.30586283]
[1749322366197,5.72970279,105750.0,105740.0,0.30586283]
[1749322366413,5.71864009,105750.0,105740.0,0.30586283]
[1749322366632,5.73634063,105750.0,105740.0,0.30586283]
[1749322367053,5.73634055,105750.0,105740.0,0.30586283]
[1749322367266,5.73634048,105750.0,105740.0,0.30586283]
[1749322367472,5.72970272,105750.0,105740.0,0.30586283]
[1749322367679,5.71863987,105750.0,105740.0,0.30586283]
[1749322367898,5.73634065,105750.0,105740.0,0.30586283]
[1749322368358,5.73634344,105750.0,105740.0,0.30586283]
[1749322368526,5.73635058,105750.0,105740.0,0.30586283]
[1749322368753,5.736351,105750.0,105740.0,0.30586283]
[1749322368958,5.71864285,105750.0,105740.0,0.30586283]
[1749322369403,5.72971047,105750.0,105740.0,0.30586283]
[1749322369549,5.73635116,105750.0,105740.0,0.30586283]
[1749322369753,5.71200229,105750.0,105740.0,0.30586283]
[1749322369965,5.73635126,105750.0,105740.0,0.30586283]
[1749322370390,5.73635109,105750.0,105740.0,0.30586283]
[1749322370585,5.73635105,105750.0,105740.0,0.30586283]
[1749322370843,5.72971043,105750.0,105740.0,0.30586283]
[1749322371046,5.73635103,105750.0,105740.0,0.30586283]
[1749322371234,5.71864278,105750.0,105740.0,0.30586283]
[1749322371389,5.71200229,105750.0,105740.0,0.30586283]
[1749322372008,5.7186427,105750.0,105740.0,0.30586283]
[1749322372229,5.71864275,105750.0,105740.0,0.30586283]
[1749322372455,5.71864273,105750.0,105740.0,0.30586283]
[1749322372662,5.69858381,105750.0,105740.0,0.32116283]
[1749322372864,5.69194352,105750.0,105740.0,0.32116283]
[1749322373090,5.27132477,105750.0,105740.0,0.32116283]
[1749322373298,5.68087525,105750.0,105740.0,0.32116283]
[1749322373475,5.69858118,105750.0,105740.0,0.32116283]
[1749322373724,5.69858125,105750.0,105740.0,0.32116283]
[1749322373945,5.67423547,105750.0,105740.0,0.32116283]
[1749322374366,5.68087521,105750.0,105740.0,0.32116283]
[1749322374577,5.67423547,105750.0,105740.0,0.32116283]
[1749322375002,5.68087517,105750.0,105740.0,0.32116283]
[1749322375214,5.67423547,105750.0,105740.0,0.32116283]
[1749322375423,5.6808752,105750.0,105740.0,0.32116283]
[1749322375843,5.67423547,105750.0,105740.0,0.32116283]
[1749322376044,5.69858131,105750.0,105740.0,0.32116283]
[1749322376265,5.68087524,105750.0,105740.0,0.32116283]
[1749322376513,5.68087513,105750.0,105740.0,0.32116283]
[1749322376708,5.67423547,105750.0,105740.0,0.32116283]
[1749322377139,5.69194159,105750.0,105740.0,0.32116283]
[1749322377417,5.69858184,105750.0,105740.0,0.32116283]
[1749322377676,5.69858111,105750.0,105740.0,0.32116283]
[1749322377906,5.67423547,105750.0,105740.0,0.32116283]
[1749322378104,5.71200229,105750.0,105740.0,0.32116283]
[1749322378319,5.718642,105750.0,105740.0,0.32116283]
[1749322378531,5.73634793,105750.0,105740.0,0.32116283]
[1749322378739,5.71864202,105750.0,105740.0,0.32116283]
[1749322378942,5.72970842,105750.0,105740.0,0.32116283]
[1749322379155,5.73634825,105750.0,105740.0,0.32116283]
[1749322379356,5.72970845,105750.0,105740.0,0.32116283]
[1749322379584,5.73635381,105750.0,105740.0,0.32116283]
[1749322379793,5.73635364,105750.0,105740.0,0.32116283]
[1749322380011,5.72971236,105750.0,105740.0,0.32116283]
[1749322380226,5.71864357,105750.0,105740.0,0.32116283]
[1749322380464,5.73635362,105750.0,105740.0,0.32116283]
[1749322380896,5.73635432,105750.0,105740.0,0.30586283]
[1749322381105,5.73635416,105750.0,105740.0,0.30586283]
[1749322381311,5.72971274,105750.0,105740.0,0.30586283]
[1749322381525,5.73635415,105750.0,105740.0,0.30586283]
[1749322381732,5.71200229,105750.0,105740.0,0.30586283]
[1749322381942,5.72971266,105750.0,105740.0,0.30586283]
[1749322382161,5.73635404,105750.0,105740.0,0.30586283]
[1749322382401,5.73635403,105750.0,105740.0,0.30586283]
[1749322382604,5.71864369,105750.0,105740.0,0.30586283]
[1749322382813,5.72971268,105750.0,105740.0,0.30586283]
[1749322383027,5.71200229,105750.0,105740.0,0.30586283]
[1749322383224,5.73635263,105750.0,105740.0,0.30586283]
[1749322383891,0.66492191,105750.0,105740.0,0.32106283]
[1749322384113,0.67109354,105750.0,105740.0,0.40882283]
[1749322384325,0.67109364,105750.0,105740.0,0.40882283]
[1749322384528,0.6600252,105750.0,105740.0,0.40882283]
[1749322384730,0.677735,105750.0,105740.0,0.40882283]
[1749322384937,0.67773489,105750.0,105740.0,0.40882283]
[1749322385153,0.67773488,105750.0,105740.0,0.40882283]
[1749322385571,0.67773518,105750.0,105740.0,0.40882283]
[1749322385768,0.65338403,105750.0,105740.0,0.40882283]
[1749322385977,0.6777355,105750.0,105740.0,0.40882283]
[1749322386123,0.67109424,105750.0,105740.0,0.40882283]
[1749322386330,0.6777356,105750.0,105740.0,0.40882283]
[1749322386532,0.69544633,105750.0,105740.0,0.40882283]
[1749322387399,0.69544649,105750.0,105740.0,0.40882283]
[1749322387575,0.67773595,105750.0,105740.0,0.40882283]
[1749322387777,0.68880508,105750.0,105740.0,0.40882283]
[1749322388001,0.68880512,105750.0,105740.0,0.40882283]
[1749322388327,0.69544671,105750.0,105740.0,0.40882283]
[1749322388460,0.69544669,105750.0,105740.0,0.40882283]
[1749322388819,0.6954467,105750.0,105740.0,0.40882283]
[1749322389188,0.69543285,105750.0,105740.0,0.40882283]
[1749322389396,0.68876886,105750.0,105740.0,0.40882283]
[1749322389603,0.67109447,105750.0,105740.0,0.40882283]
[1749322389803,0.69539674,105750.0,105740.0,0.40882283]
[1749322390629,0.67772235,105750.0,105740.0,0.40882283]
[1749322390834,0.69539306,105750.0,105740.0,0.40882283]
[1749322391053,0.69539169,105750.0,105740.0,0.40882283]
[1749322391269,0.69539173,105750.0,105740.0,0.40882283]
[1749322391468,0.67772098,105750.0,105740.0,0.40882283]
[1749322391661,0.6887652,105750.0,105740.0,0.40882283]
[1749322391988,0.69539168,105750.0,105740.0,0.40882283]
[1749322392658,0.69539165,105750.0,105740.0,0.40882283]
[1749322392867,0.67772095,105750.0,105740.0,0.40882283]
[1749322393084,0.69539175,105750.0,105740.0,0.40882283]
[1749322393299,0.68876519,105750.0,105740.0,0.40882283]
[1749322393514,0.69539171,105750.0,105740.0,0.40882283]
[1749322393728,0.67109447,105750.0,105740.0,0.40882283]
[1749322393941,0.69539172,105750.0,105740.0,0.40882283]
[1749322394578,0.6887652,105750.0,105740.0,0.40882283]
[1749322394787,0.68876792,105750.0,105740.0,0.40882283]
[1749322395001,0.68876813,105750.0,105740.0,0.40882283]
[1749322395215,0.67109447,105750.0,105740.0,0.40882283]
[1749322395475,0.6777221,105750.0,105740.0,0.40882283]
[1749322395695,0.6953958,105750.0,105740.0,0.40882283]
[1749322396107,0.67109447,105750.0,105740.0,0.40882283]
[1749322396315,0.6953958,105750.0,105740.0,0.40882283]
[1749322396520,0.68876817,105750.0,105740.0,0.40882283]
[1749322396968,0.6953958,105750.0,105740.0,0.40882283]
[1749322397408,0.6777221,105750.0,105740.0,0.40882283]
[1749322397866,0.68876816,105750.0,105740.0,0.40882283]
[1749322398076,0.68876817,105750.0,105740.0,0.40882283]
[1749322398297,0.6953958,105750.0,105740.0,0.40882283]
[1749322398523,0.67772444,105750.0,105740.0,0.40882283]
[1749322398978,0.69540478,105750.0,105740.0,0.40882283]
[1749322399431,0.69540904,105750.0,105740.0,0.40882283]
[1749322399650,0.68877907,105750.0,105740.0,0.40882283]
[1749322399870,0.69541079,105750.0,105740.0,0.40882283]
[1749322400087,0.68877907,105750.0,105740.0,0.40882283]
[1749322400306,0.67109447,105750.0,105740.0,0.40882283]
[1749322400758,0.69541076,105750.0,105740.0,0.40882283]
[1749322400937,0.67109447,105750.0,105740.0,0.40882283]
[1749322401376,0.69541143,105750.0,105740.0,0.40882283]
[1749322401585,0.67109447,105750.0,105740.0,0.40882283]
[1749322401789,0.69541222,105750.0,105740.0,0.40882283]
[1749322402039,0.67109447,105750.0,105740.0,0.40882283]
[1749322402249,0.29250151,105750.0,105740.0,0.40882283]
[1749322402461,0.2858694,105750.0,105740.0,0.40882283]
[1749322402675,0.28587115,105750.0,105740.0,0.40882283]
[1749322402897,0.26818377,105750.0,105740.0,0.40882283]
[1749322403105,0.68878193,105750.0,105740.0,0.40882283]
[1749322403323,0.69541467,105750.0,105740.0,0.40882283]
[1749322403531,0.67772725,105750.0,105740.0,0.40882283]
[1749322403741,0.67109447,105750.0,105740.0,0.40882283]
[1749322403950,0.69541468,105750.0,105740.0,0.40882283]
[1749322404590,0.69541469,105750.0,105740.0,0.40882283]
[1749322404795,0.6954147,105750.0,105740.0,0.40882283]
[1749322405000,0.67772726,105750.0,105740.0,0.40882283]
[1749322405415,0.67772725,105750.0,105740.0,0.40882283]
[1749322405624,0.69541466,105750.0,105740.0,0.40882283]
[1749322406042,0.69541625,105750.0,105740.0,0.40882283]
[1749322406468,0.67772725,105750.0,105740.0,0.40882283]
[1749322406691,0.67109447,105750.0,105740.0,0.40882283]
[1749322406902,0.69541527,105750.0,105740.0,0.40882283]
[1749322407113,0.69541495,105750.0,105740.0,0.40882283]
[1749322407321,0.69541446,105750.0,105740.0,0.40882283]
[1749322408172,0.69541468,105750.0,105740.0,0.40882283]
[1749322408350,0.69541628,105750.0,105740.0,0.40882283]
[1749322408599,0.67772774,105750.0,105740.0,0.40882283]
[1749322408801,0.68878298,105750.0,105740.0,0.40882283]
[1749322409006,0.69541617,105750.0,105740.0,0.40882283]
[1749322410060,0.69541757,105750.0,105740.0,0.40882283]
[1749322410272,0.6887847,105750.0,105740.0,0.40882283]
[1749322410477,0.67109447,105750.0,105740.0,0.40882283]
[1749322410699,0.69541855,105750.0,105740.0,0.40882283]
[1749322411528,0.69541854,105750.0,105740.0,0.40882283]
[1749322411712,0.6887847,105750.0,105740.0,0.40882283]
[1749322411957,0.67772838,105750.0,105740.0,0.40882283]
[1749322412169,0.67109447,105750.0,105740.0,0.40882283]
[1749322412386,0.69541855,105750.0,105740.0,0.40882283]
[1749322412595,0.6777283,105750.0,105740.0,0.40882283]
[1749322412807,0.67109447,105750.0,105740.0,0.40882283]
[1749322413021,0.69541851,105750.0,105740.0,0.40882283]
[1749322413238,0.69542665,105750.0,105740.0,0.40882283]
[1749322413445,0.69544845,105750.0,105740.0,0.40882283]
[1749322413655,0.67773644,105750.0,105740.0,0.40882283]
[1749322413868,0.67773653,105750.0,105740.0,0.40882283]
[1749322414098,0.27482583,105750.0,105740.0,0.40882283]
[1749322414339,0.68880663,105750.0,105740.0,0.40882283]
[1749322414579,0.67109447,105750.0,105740.0,0.40882283]
[1749322414786,0.67773653,105750.0,105740.0,0.40882283]
[1749322414992,0.67109447,105750.0,105740.0,0.40882283]
[1749322415200,0.69544917,105750.0,105740.0,0.40882283]
[1749322415412,0.69544969,105750.0,105740.0,0.40882283]
[1749322416071,0.6777368,105750.0,105740.0,0.40882283]
[1749322416285,0.69544969,105750.0,105740.0,0.40882283]
[1749322416495,0.6954497,105750.0,105740.0,0.40882283]
[1749322417573,0.68880737,105750.0,105740.0,0.40882283]
[1749322417785,0.6954497,105750.0,105740.0,0.40882283]
[1749322417995,0.67109447,105750.0,105740.0,0.40882283]
[1749322418215,0.6777368,105750.0,105740.0,0.40882283]
[1749322418441,0.69544851,105750.0,105740.0,0.40882283]
[1749322418648,0.69544842,105750.0,105740.0,0.40882283]
[1749322418861,0.69544892,105750.0,105740.0,0.40882283]
[1749322419075,0.69544983,105750.0,105740.0,0.40882283]
[1749322419285,0.69545007,105750.0,105740.0,0.40882283]
[1749322419507,0.67109447,105750.0,105740.0,0.40882283]
[1749322419735,0.6954501,105750.0,105740.0,0.40882283]
[1749322419944,0.68880766,105750.0,105740.0,0.40882283]
[1749322420157,0.67773694,105750.0,105740.0,0.40882283]
[1749322420369,0.69545012,105750.0,105740.0,0.40882283]
[1749322420576,0.68880766,105750.0,105740.0,0.40882283]
[1749322420790,0.67109447,105750.0,105740.0,0.40882283]
[1749322421083,0.67773714,105750.0,105740.0,0.40882283]
[1749322421283,0.67109447,105750.0,105740.0,0.40882283]
[1749322421489,0.67773712,105750.0,105740.0,0.40882283]
[1749322421695,0.69545084,105750.0,105740.0,0.40882283]
[1749322421895,0.6777371,105750.0,105740.0,0.40882283]
[1749322422115,0.67109447,105750.0,105740.0,0.40882283]
[1749322422538,0.69545027,105750.0,105740.0,0.40882283]
[1749322422739,0.67109447,105750.0,105740.0,0.40882283]
[1749322422918,0.68880805,105750.0,105740.0,0.40882283]
[1749322423075,0.69545035,105750.0,105740.0,0.40882283]
[1749322423287,0.68880767,105750.0,105740.0,0.40882283]
[1749322423637,0.69545026,105750.0,105740.0,0.40882283]
[1749322423863,0.67109447,105750.0,105740.0,0.40882283]
[1749322424063,0.67773695,105750.0,105740.0,0.40882283]
[1749322424270,0.68880864,105750.0,105740.0,0.40882283]
[1749322424468,0.67109447,105750.0,105740.0,0.40882283]
[1749322424661,0.69545145,105750.0,105740.0,0.40882283]
[1749322425339,0.67773734,105750.0,105740.0,0.40882283]
[1749322425523,0.69545177,105750.0,105740.0,0.40882283]
[1749322425726,0.67773738,105750.0,105740.0,0.40882283]
[1749322425955,0.69545162,105750.0,105740.0,0.40882283]
[1749322426365,0.69545056,105750.0,105740.0,0.40882283]
[1749322426721,0.69545015,105750.0,105740.0,0.40882283]
[1749322426931,0.67773697,105750.0,105740.0,0.40882283]
[1749322427150,0.67109447,105750.0,105740.0,0.40882283]
[1749322427399,0.69545034,105750.0,105740.0,0.40882283]
[1749322427606,0.67109447,105750.0,105740.0,0.40882283]
[1749322427802,0.67773699,105750.0,105740.0,0.40882283]
[1749322428037,0.68880786,105750.0,105740.0,0.40882283]
[1749322428232,0.69545038,105750.0,105740.0,0.40882283]
[1749322428760,0.67773704,105750.0,105740.0,0.40882283]
[1749322429076,0.68881162,105750.0,105740.0,0.40882283]
[1749322429569,0.6777384,105750.0,105740.0,0.40882283]
[1749322429801,0.69545555,105750.0,105740.0,0.40882283]
[1749322430239,0.69545552,105750.0,105740.0,0.40882283]
[1749322430443,0.67109447,105750.0,105740.0,0.40882283]
[1749322430663,0.68881159,105750.0,105740.0,0.40858283]
[1749322430877,0.67109447,105750.0,105740.0,0.40858283]
[1749322431089,0.67773839,105750.0,105740.0,0.03334283]
[1749322431310,0.68881159,105750.0,105740.0,0.03334283]
[1749322431521,0.69545542,105750.0,105740.0,0.40858283]
[1749322432167,0.69545522,105750.0,105740.0,0.40858283]
[1749322432372,0.688811,105750.0,105740.0,0.40858283]
[1749322432614,0.67773816,105750.0,105740.0,0.40858283]
[1749322433034,0.68881107,105750.0,105740.0,0.40858283]
[1749322433241,0.69545479,105750.0,105740.0,0.40858283]
[1749322434111,0.69545482,105750.0,105740.0,0.40858283]
[1749322434315,0.6777382,105750.0,105740.0,0.40858283]
[1749322434494,0.67109447,105750.0,105740.0,0.40858283]
[1749322434636,0.69545476,105750.0,105740.0,0.40858283]
[1749322434845,0.69545474,105750.0,105740.0,0.40858283]
[1749322435735,0.69545534,105750.0,105740.0,0.40858283]
[1749322435936,0.67773848,105750.0,105740.0,0.40858283]
[1749322436143,0.69545666,105750.0,105740.0,0.40858283]
[1749322436319,0.67773872,105750.0,105740.0,0.40858283]
[1749322436727,0.69545673,105750.0,105740.0,0.40858283]
[1749322436897,0.69545674,105750.0,105740.0,0.40858283]
[1749322437308,0.69545682,105750.0,105740.0,0.40858283]
[1749322437732,0.29254615,105750.0,105740.0,0.60718307]
[1749322437934,0.26818377,105750.0,105740.0,1.11595023]
[1749322438139,0.27644659,105750.0,105740.0,0.90789301]
[1749322438339,0.25872796,105750.0,105740.0,0.50498231]
[1749322438562,0.27644716,105750.0,105740.0,0.50498231]
[1749322438784,0.27244716,105750.0,105740.0,0.50498231]
[1749322439439,0.27244701,105750.0,105740.0,0.50498231]
[1749322439610,0.27244688,105750.0,105740.0,0.50498231]
[1749322439826,0.26944687,105750.0,105740.0,0.50498231]
[1749322440071,0.25172796,105750.0,105740.0,0.50498231]
[1749322440267,0.26944692,105750.0,105740.0,0.50498231]
[1749322440500,0.27044692,105750.0,105740.0,0.50498231]
[1749322440665,0.27244692,105750.0,105740.0,0.50498231]
[1749322441089,0.27244011,105750.0,105740.0,0.50498231]
[1749322441334,0.0656024,105750.0,105740.0,0.69412549]
[1749322441544,0.08451402,105750.0,105740.0,1.16831768]
[1749322441750,0.27363994,105750.0,105740.0,1.15886133]
[1749322442167,0.27363994,105750.0,105740.0,1.16831822]
[1749322443027,0.25472805,105750.0,105740.0,1.15886133]
[1749322443170,0.25472805,105750.0,105740.0,1.15885546]
[1749322448902,0.25472805,105750.0,105740.0,1.1684162]
[1749322449105,0.25472805,105750.0,105740.0,1.13049108]
[1749322450477,0.25472805,105750.0,105740.0,1.1210341]
[1749322451536,0.25472805,105750.0,105740.0,1.13994797]
[1749322455631,0.24527188,105750.0,105740.0,0.23192316]
[1749322455853,0.24527188,105750.0,105740.0,0.51940316]
[1749322456938,0.24527188,105750.0,105740.0,0.52886031]
[1749322457149,0.24527188,105750.0,105740.0,0.51940316]
[1749322457577,0.25481866,105750.0,105740.0,0.51940316]
[1749322458443,0.25481866,105750.0,105740.0,0.52886031]
[1749322459067,0.25481866,105750.0,105740.0,0.51940316]
[1749322459690,0.24527188,105750.0,105740.0,0.7180034]
[1749322460953,0.25454004,105750.0,105740.0,0.7180034]
[1749322462012,0.25454004,105750.0,105740.0,0.52886031]
[1749322462225,0.25454004,105750.0,105740.0,0.71800349]
[1749322465163,0.25454004,105750.0,105740.0,0.51940316]
[1749322465850,0.25454004,105750.0,105740.0,0.11454231]
[1749322465981,0.70744669,105750.0,105740.0,0.37686283]
[1749322466360,0.68975074,105750.0,105740.0,0.37686283]
[1749322466549,0.71408181,105750.0,105740.0,0.37686283]
[1749322467393,0.70744536,105750.0,105740.0,0.37686283]
[1749322467630,0.69638615,105750.0,105740.0,0.37686283]
[1749322467840,0.69638619,105750.0,105740.0,0.37686283]
[1749322468030,0.71408061,105750.0,105740.0,0.37686283]
[1749322468704,0.71407848,105750.0,105740.0,0.37686283]
[1749322469105,0.69637812,105750.0,105740.0,0.37686283]
[1749322469287,0.69637779,105750.0,105740.0,0.37686283]
[1749322469489,0.69637806,105750.0,105740.0,0.37686283]
[1749322469863,0.67205529,105750.0,105740.0,0.37686283]
[1749322470086,0.69637768,105750.0,105740.0,0.37686283]
[1749322470327,0.69637783,105750.0,105740.0,0.37686283]
[1749322470784,0.69637632,105750.0,105740.0,0.37686283]
[1749322471002,0.69637273,105750.0,105740.0,0.37686283]
[1749322471241,0.6786872,105750.0,105740.0,0.37686283]
[1749322471454,0.67868799,105750.0,105740.0,0.37686283]
[1749322471671,0.68974419,105750.0,105740.0,0.37686283]
[1749322471897,0.69637822,105750.0,105740.0,0.37686283]
[1749322472107,0.69637822,105750.0,105740.0,0.00174283]
[1749322472342,0.69348979,105750.0,105740.0,0.37690283]
[1749322472979,0.69348991,105750.0,105740.0,0.37690283]
[1749322473183,0.66916686,105750.0,105740.0,0.37690283]
[1749322473397,0.67580095,105750.0,105740.0,0.37690283]
[1749322473610,0.675801,105750.0,105740.0,0.37690283]
[1749322473818,0.675801,105750.0,105740.0,0.00174283]
[1749322474029,0.675801,105750.0,105740.0,0.37690283]
[1749322474449,0.67580079,105750.0,105740.0,0.37690283]
[1749322474889,0.66916686,105750.0,105740.0,0.37690283]
[1749322475116,0.67580075,105750.0,105740.0,0.37690283]
[1749322475319,0.66916686,105750.0,105740.0,0.37690283]
[1749322475531,0.67580057,105750.0,105740.0,0.37690283]
[1749322475969,0.65296686,105750.0,105740.0,0.37690283]
[1749322476188,0.23395616,105750.0,105740.0,0.37690283]
[1749322476400,0.63686686,105750.0,105740.0,0.39200283]
[1749322476846,0.6435013,105750.0,105740.0,0.40730283]
[1749322477058,0.64350109,105750.0,105740.0,0.40730283]
[1749322477275,0.23395616,105750.0,105740.0,0.40730283]
[1749322478396,0.63686686,105750.0,105740.0,0.40730283]
[1749322478601,0.64350126,105750.0,105740.0,0.40730283]
[1749322478810,0.64350125,105750.0,105740.0,0.40730283]
[1749322479032,0.64350115,105750.0,105740.0,0.40730283]
[1749322479239,0.64350111,105750.0,105740.0,0.40585639]
[1749322479456,0.64350158,105750.0,105740.0,0.40585639]
[1749322479669,0.63686686,105750.0,105740.0,0.40585639]
[1749322479880,0.64350149,105750.0,105740.0,0.40585639]
[1749322480745,0.63686686,105750.0,105740.0,0.40585639]
[1749322481157,0.64350147,105750.0,105740.0,0.40585639]
[1749322481366,0.63686686,105750.0,105740.0,0.40585639]
[1749322481569,0.6435014,105750.0,105740.0,0.40585639]
[1749322481801,0.64350139,105750.0,105740.0,0.40585639]
[1749322482006,0.6435014,105750.0,105740.0,0.40585639]
[1749322482634,0.63686686,105750.0,105740.0,0.40585639]
[1749322482845,0.64350112,105750.0,105740.0,0.40585639]
[1749322483067,0.63686686,105750.0,105740.0,0.40585639]
[1749322483291,0.6435022,105750.0,105740.0,0.40585639]
[1749322483709,0.6435022,105750.0,105740.0,0.39055639]
[1749322484129,0.64350298,105750.0,105740.0,0.39055639]
[1749322484308,0.63686686,105750.0,105740.0,0.39055639]
[1749322484787,0.66119935,105750.0,105740.0,0.39055639]
[1749322484993,0.63686686,105750.0,105740.0,0.39055639]
[1749322485198,0.66119935,105750.0,105740.0,0.39055639]
[1749322485482,0.66119937,105750.0,105740.0,0.39055639]
[1749322486203,0.65456324,105750.0,105740.0,0.39055639]
[1749322486413,0.66121009,105750.0,105740.0,0.39055639]
[1749322486658,0.65457103,105750.0,105740.0,0.39055639]
[1749322486858,0.66121015,105750.0,105740.0,0.39055639]
[1749322487987,0.63686686,105750.0,105740.0,0.39055639]
[1749322488223,0.64350645,105750.0,105740.0,0.39055639]
[1749322488493,0.63686686,105750.0,105740.0,0.39055639]
[1749322488697,0.65457234,105750.0,105740.0,0.39055639]
[1749322488902,0.65457242,105750.0,105740.0,0.39055639]
[1749322489204,0.661212,105750.0,105740.0,0.39055639]
[1749322489648,0.65457242,105750.0,105740.0,0.39055639]
[1749322489849,0.64350644,105750.0,105740.0,0.39055639]
[1749322490059,0.25830133,105750.0,105740.0,0.39055639]
[1749322490274,0.65457244,105750.0,105740.0,0.39055639]
[1749322490524,0.64350646,105750.0,105740.0,0.39055639]
[1749322490725,0.66121207,105750.0,105740.0,0.39055639]
[1749322490930,0.66121204,105750.0,105740.0,0.39055639]
[1749322491141,0.63686686,105750.0,105740.0,0.39055639]
[1749322491342,0.64350688,105750.0,105740.0,0.39055639]
[1749322491555,0.66121359,105750.0,105740.0,0.39055639]
[1749322491680,0.6612136,105750.0,105740.0,0.39055639]
[1749322491904,0.63686686,105750.0,105740.0,0.39055639]
[1749322492112,0.64350686,105750.0,105740.0,0.39055639]
[1749322492343,0.65457354,105750.0,105740.0,0.39055639]
[1749322492546,0.66121354,105750.0,105740.0,0.39055639]